bitfinex/quotes_ETHUSD_20251019
["timestamp","ask_amount","ask_price","bid_price","bid_amount"]
[1760883865515,0.02501891,3993.1,3992.2,0.1248]
[1760883865818,0.2253,3993.2,3992.2,0.1248]
[1760883866104,0.2253,3993.2,3992.3,2.50480996]
[1760883866412,0.2253,3993.2,3992.2,0.1248]
[1760883866577,0.4419,3993.1,3991.7,0.002]
[1760883866779,0.02501891,3993.0,3992.1,0.1268]
[1760883867007,2.50445933,3992.9,3992.4,0.1248]
[1760883867318,0.46691891,3992.8,3992.4,0.1248]
[1760883867517,0.6672,3993.2,3992.1,0.002]
[1760883867835,0.02501891,3993.1,3992.1,2.50694544]
[1760883868121,2.729373,3993.5,3992.3,2.50480267]
[1760883868277,0.2253,3993.5,3992.1,0.002]
[1760883868481,0.2253,3993.5,3992.2,2.50486671]
[1760883868681,0.2253,3993.5,3992.1,0.002]
[1760883868986,0.2253,3993.5,3992.2,2.731]
[1760883869196,0.2253,3993.5,3992.2,2.9266]
[1760883869394,0.6672,3994.2,3992.2,2.9266]
[1760883869591,2.50406261,3993.6,3992.5,2.50467449]
[1760883869791,0.02501891,3993.5,3992.1,0.002]
[1760883870189,2.50438012,3993.1,3992.2,0.321]
[1760883870397,0.4419,3993.4,3992.1,0.002]
[1760883870622,0.02501891,3993.3,3992.3,2.73]
[1760883870807,0.4419,3993.4,3992.4,2.50475378]
[1760883871122,2.50405166,3993.6,3992.6,2.50463083]
[1760883871415,0.2253,3992.7,3992.1,0.002]
[1760883871778,2.7298843,3992.7,3992.1,0.002]
[1760883872010,2.50475334,3992.5,3992.1,0.002]
[1760883872389,0.2253,3993.5,3992.1,0.002]
[1760883872610,0.02361891,3993.4,3992.2,0.011]
[1760883872830,0.6672,3993.5,3992.6,2.50462422]
[1760883873025,0.2253,3993.5,3992.3,0.02503922]
[1760883873221,0.2253,3993.5,3992.8,2.50445678]
[1760883873618,0.02361891,3993.4,3992.9,2.729]
[1760883873935,0.2253,3993.5,3992.9,2.729]
[1760883874227,2.50387168,3993.9,3992.7,2.50456551]
[1760883874427,2.50377257,3994.0,3992.8,5.23250733]
[1760883874798,2.94567257,3994.0,3992.8,2.728]
[1760883875000,0.02361891,3993.9,3992.1,0.002]
[1760883875202,0.4497,3993.8,3992.4,2.50473454]
[1760883875439,0.2253,3994.2,3992.9,2.50444102]
[1760883875746,2.50344344,3994.5,3992.9,0.1956]
[1760883875946,2.50338149,3994.6,3992.9,0.1956]
[1760883876099,2.50338149,3994.6,3993.5,2.50401605]
[1760883876303,0.675,3995.0,3993.6,2.8498]
[1760883876523,5.279633,3994.8,3993.7,2.724]
[1760883876729,0.2348,3993.8,3992.9,0.1248]
[1760883876925,0.2348,3993.8,3993.0,0.502]
[1760883877133,0.25841891,3993.8,3993.0,0.502]
[1760883877301,2.50396083,3993.7,3993.0,0.502]
[1760883877508,0.1248,3994.1,3993.4,0.1248]
[1760883877803,0.1248,3994.3,3993.6,0.1248]
[1760883878217,2.50373962,3994.1,3993.1,2.50431109]
[1760883878416,2.50373962,3994.1,3992.9,0.1248]
[1760883878741,0.02361891,3994.0,3993.0,2.722]
[1760883878899,2.52736495,3994.1,3993.0,2.722]
[1760883879104,0.2348,3993.9,3993.1,2.722]
[1760883879342,2.52725966,3994.2,3993.1,2.50430922]
[1760883879639,2.52725002,3994.2,3993.2,5.22625]
[1760883879807,2.52725002,3994.2,3993.3,2.721]
[1760883880002,0.02361891,3994.2,3993.4,2.50412699]
[1760883880208,2.50363991,3994.2,3993.3,2.721]
[1760883880409,0.02361891,3994.2,3992.9,2.62918817]
[1760883880627,2.50369294,3994.1,3993.4,2.721]
[1760883880831,0.02361891,3994.2,3993.4,2.721]
[1760883881030,0.2253,3995.0,3994.1,0.0708]
[1760883881229,2.50325423,3994.8,3994.1,0.0708]
[1760883881446,0.2253,3995.0,3994.1,0.0708]
[1760883881843,2.50321044,3994.9,3994.1,0.0708]
[1760883882162,0.2253,3995.0,3994.1,0.0708]
[1760883882365,0.2253,3995.0,3994.2,2.50363026]
[1760883882543,2.7281927,3995.4,3994.3,2.717]
[1760883882544,0.2253,3995.4,3994.3,2.717]
[1760883882748,2.7282335,3995.4,3994.5,2.50342841]
[1760883882922,0.2253,3995.4,3994.6,2.50336409]
[1760883883118,0.2253,3995.4,3994.7,2.50328999]
[1760883883421,0.2253,3995.4,3994.5,2.50338403]
[1760883883736,2.50325216,3994.9,3993.9,2.50376292]
[1760883884060,2.73825058,3994.5,3994.0,2.715]
[1760883884220,0.4497,3994.4,3994.0,2.715]
[1760883884426,0.4497,3994.4,3993.7,2.50394333]
[1760883884638,0.2348,3994.5,3994.1,2.714]
[1760883885051,0.2253,3996.0,3994.1,5.28847316]
[1760883885249,0.2348,3995.7,3994.1,0.0708]
[1760883885552,0.47331891,3995.6,3994.2,1.839]
[1760883885754,0.47331891,3995.6,3993.1,2.715]
[1760883885755,1.728,3995.4,3993.1,2.715]
[1760883885961,0.4497,3995.5,3994.1,0.0708]
[1760883886136,2.50306706,3995.1,3994.2,2.715]
[1760883886333,2.50306625,3995.1,3994.2,2.715]
[1760883886637,0.02361891,3995.3,3994.2,2.715]
[1760883886830,2.5030036,3995.2,3994.2,2.715]
[1760883887168,2.52661283,3995.3,3994.2,5.21862147]
[1760883887320,2.50302449,3995.2,3994.2,5.21862147]
[1760883887520,2.50306713,3995.1,3994.2,2.715]
[1760883887928,0.001,3994.5,3994.2,2.715]
[1760883888331,0.001,3994.5,3994.4,0.1248]
[1760883889267,0.001,3994.5,3993.8,0.1956]
[1760883889268,0.6346,3994.5,3992.4,0.002]
[1760883889432,0.4507,3994.5,3993.1,2.73904319]
[1760883889630,0.001,3994.5,3993.2,0.1956]
[1760883889845,2.5044457,3994.5,3993.3,0.01006224]
[1760883890134,2.5044457,3994.5,3993.4,2.50413181]
[1760883890363,2.50374779,3994.1,3993.2,1.728]
[1760883890564,2.50363904,3994.2,3993.2,4.23224676]
[1760883890768,2.52732949,3994.1,3993.3,2.713]
[1760883890971,0.02361891,3994.1,3993.3,2.713]
[1760883891189,0.02361891,3994.1,3993.1,0.002]
[1760883891190,2.52724195,3994.3,3993.1,0.002]
[1760883891337,2.50406783,3993.6,3993.2,0.23]
[1760883891848,2.73946472,3993.9,3993.1,0.002]
[1760883891849,0.4699,3993.5,3993.1,0.002]
[1760883892040,0.7055,3993.9,3993.1,0.002]
[1760883892241,0.4699,3993.4,3993.1,0.002]
[1760883892433,2.50425723,3993.2,3993.1,0.002]
[1760883892628,2.50425723,3993.2,3993.1,2.713]
[1760883892850,2.50419515,3993.3,3993.1,2.713]
[1760883893361,2.50406167,3993.6,3993.1,2.713]
[1760883893531,0.4699,3993.6,3993.1,2.713]
[1760883893937,2.50406911,3993.5,3993.1,2.713]
[1760883894132,2.50413458,3993.4,3993.1,2.713]
[1760883894350,0.2356,3993.9,3993.1,2.713]
[1760883894351,2.50388101,3993.8,3993.1,2.713]
[1760883894768,2.50388101,3993.8,3993.2,0.02504257]
[1760883894964,0.2356,3993.9,3993.1,2.713]
[1760883895292,2.50389436,3993.8,3993.1,2.713]
[1760883895875,2.50395224,3993.7,3993.1,2.713]
[1760883896075,2.50388515,3993.8,3993.1,2.713]
[1760883896392,2.50397021,3993.7,3993.1,2.713]
[1760883896566,2.50388767,3993.8,3993.1,2.713]
[1760883896968,2.7630478,3993.9,3993.1,2.713]
[1760883897170,0.25921891,3993.9,3993.1,2.713]
[1760883897493,0.2356,3993.9,3993.1,2.713]
[1760883897694,2.50412597,3993.5,3993.2,2.703]
[1760883898092,0.2356,3993.9,3993.2,2.703]
[1760883898293,2.50393145,3993.8,3993.2,2.703]
[1760883898667,2.50394477,3993.7,3993.2,2.703]
[1760883898869,0.25921891,3993.9,3993.1,0.002]
[1760883898870,0.49351891,3993.6,3993.1,0.002]
[1760883899296,0.3604,3993.9,3993.3,0.1248]
[1760883899500,2.50406588,3993.6,3993.5,0.1248]
[1760883899865,2.503956,3993.7,3993.5,0.1248]
[1760883900286,2.50418093,3993.4,3993.1,0.002]
[1760883900473,0.4699,3993.6,3993.1,0.002]
[1760883900474,2.50424511,3993.3,3993.1,0.002]
[1760883900676,0.4699,3993.6,3993.1,0.002]
[1760883900875,2.97391157,3993.6,3993.1,0.002]
[1760883901080,2.52763048,3993.6,3993.1,0.002]
[1760883901401,0.49351891,3993.5,3993.1,0.002]
[1760883901604,2.50425723,3993.2,3993.1,0.002]
[1760883901801,0.4699,3993.4,3993.1,0.002]
[1760883902001,0.02361891,3993.5,3993.1,0.002]
[1760883902299,2.50395796,3993.7,3993.1,0.002]
[1760883902605,0.2356,3993.8,3993.1,0.002]
[1760883902808,2.73949276,3993.8,3993.1,0.002]
[1760883903012,0.02361891,3993.7,3993.1,0.002]
[1760883903311,2.52760041,3993.7,3993.1,0.002]
[1760883903478,0.4699,3993.6,3993.1,0.002]
[1760883903679,0.2356,3993.8,3993.1,0.002]
[1760883903909,2.50406279,3993.6,3993.1,0.002]
[1760883904211,2.73949994,3993.8,3993.1,0.002]
[1760883904414,0.2356,3993.8,3993.1,0.002]
[1760883904619,0.2356,3997.4,3993.2,0.1956]
[1760883904783,2.50357344,3994.3,3993.1,0.002]
[1760883905115,0.02361891,3994.2,3993.2,2.698]
[1760883905295,2.50368395,3994.2,3993.3,2.50419352]
[1760883905490,0.4714,3994.3,3993.4,2.50411412]
[1760883905692,2.50445965,3994.5,3993.3,0.1956]
[1760883905693,0.001,3994.5,3993.3,0.1956]
[1760883905889,0.001,3994.5,3993.9,2.50381373]
[1760883906091,0.001,3994.5,3994.1,2.50368413]
[1760883906291,0.001,3994.5,3994.0,2.7]
[1760883906493,0.001,3994.5,3994.2,2.50362532]
[1760883906789,0.001,3994.5,3994.4,2.5035049]
[1760883907183,0.001,3994.5,3994.4,2.6991049]
[1760883908589,0.001,3994.5,3994.4,5.0607049]
[1760883910289,0.001,3994.5,3994.4,5.1855049]
[1760883910989,0.001,3994.5,3994.4,7.8795049]
[1760883912285,0.001,3994.9,3994.8,3.13685423]
[1760883912520,0.001,3994.9,3994.8,4.87560631]
[1760883912812,0.01,3996.2,3996.1,2.50243987]
[1760883913014,0.2292,3997.0,3996.9,2.501939]
[1760883913214,0.2292,3997.0,3996.9,2.8158]
[1760883913589,0.2292,3997.0,3996.9,2.691]
[1760883913789,0.01,3997.0,3996.9,5.192939]
[1760883914051,0.01,3997.4,3996.9,2.691]
[1760883914315,0.01,3997.7,3996.9,2.69634499]
[1760883914513,0.2192,3998.0,3997.0,0.1956]
[1760883914514,0.2292,3998.0,3997.0,0.1956]
[1760883914718,0.01,3998.0,3997.9,2.50131318]
[1760883915035,0.2261,3998.5,3997.9,2.69]
[1760883915036,0.01,3998.5,3997.9,2.69]
[1760883915331,0.01,3998.5,3997.4,0.6336]
[1760883915332,0.01,3998.5,3998.1,2.50113473]
[1760883915487,0.01,3998.5,3998.2,2.69]
[1760883916104,0.456,3998.4,3996.3,0.1956]
[1760883916400,0.456,3998.4,3996.5,1.728]
[1760883916725,0.011,3998.9,3998.3,0.0708]
[1760883916893,0.011,3998.9,3998.5,2.5009256]
[1760883917095,0.011,3998.9,3998.3,0.0708]
[1760883917312,0.011,3998.9,3998.8,2.50075022]
[1760883917699,0.011,3998.9,3998.3,0.0708]
[1760883917910,0.011,3998.9,3998.8,2.50075022]
[1760883918931,0.011,3998.9,3998.5,1.728]
[1760883919232,0.011,3998.9,3998.7,2.50080386]
[1760883919429,0.011,3998.9,3998.6,2.691]
[1760883919806,0.011,3998.9,3998.5,4.22893663]
[1760883920009,0.011,3998.9,3998.6,2.69]
[1760883920216,0.2371,3998.9,3998.2,1.728]
[1760883920416,0.456,3998.8,3997.9,0.6336]
[1760883920615,0.456,3998.8,3998.2,2.5011141]
[1760883920809,0.456,3998.8,3997.9,3.13489352]
[1760883920810,0.456,3998.8,3997.9,0.6336]
[1760883921028,0.456,3998.8,3998.3,2.689]
[1760883921426,0.456,3998.8,3998.3,5.1900596]
[1760883921733,0.456,3998.7,3998.0,1.728]
[1760883921903,0.456,3998.7,3997.8,1.7988]
[1760883922106,0.456,3998.6,3997.5,2.50156347]
[1760883922315,0.456,3998.6,3997.7,2.50137598]
[1760883922619,0.456,3998.6,3997.6,1.91]
[1760883922827,2.50105922,3998.4,3997.5,1.728]
[1760883923033,0.2371,3998.9,3996.3,2.50225509]
[1760883923216,0.456,3998.3,3996.5,5.18818941]
[1760883923416,2.50113197,3998.2,3997.3,2.50168083]
[1760883923716,2.95711748,3998.3,3998.2,0.1248]
[1760883924808,2.50143775,3997.8,3996.5,2.50214863]
[1760883925110,0.6821,3997.7,3997.0,2.50186504]
[1760883925317,0.6821,3997.7,3997.1,2.50181115]
[1760883925518,0.6821,3997.7,3997.6,0.1248]
[1760883926722,0.6821,3997.7,3997.6,2.8048]
[1760883927549,2.5012473,3998.1,3997.6,2.8048]
[1760883927846,0.456,3998.4,3997.6,2.8048]
[1760883928047,0.6931,3998.9,3997.6,2.68]
[1760883928356,2.50093952,3998.5,3998.3,0.1248]
[1760883928528,2.50086402,3998.7,3998.4,2.679]
[1760883928733,2.50086402,3998.7,3998.6,0.1248]
[1760883929093,2.95686402,3998.7,3998.6,0.1248]
[1760883929541,0.456,3998.7,3998.6,0.1248]
[1760883929929,0.001,3998.8,3998.7,2.50081276]
[1760883930565,0.001,3998.8,3998.7,2.69641276]
[1760883930862,0.001,3998.8,3998.7,3.33001276]
[1760883931532,0.001,3998.8,3998.7,5.05801276]
[1760883931854,0.001,3998.8,3998.7,5.08302088]
[1760883932624,0.001,3998.8,3998.7,4.44942088]
[1760883932870,0.001,3998.8,3998.7,5.08302088]
[1760883933365,0.001,3999.2,3998.7,5.08302088]
[1760883933366,0.001,3999.2,3999.1,3.13416262]
[1760883933564,0.001,3999.2,3999.1,7.68896824]
[1760883933763,0.001,3999.2,3999.1,7.22596262]
[1760883934159,0.001,3999.2,3999.1,7.73476262]
[1760883934560,0.001,3999.2,3999.1,7.10116262]
[1760883935095,0.001,3999.2,3999.1,6.90556262]
[1760883935297,0.001,3999.2,3999.1,7.10116262]
[1760883935499,0.001,3999.2,3999.1,7.73476262]
[1760883935798,0.456,4000.5,3999.1,7.73476262]
[1760883935799,0.4652,4002.3,4000.7,3.13316257]
[1760883935983,0.4652,4002.3,4000.7,7.53916257]
[1760883936163,0.003,4002.4,4000.7,7.73476257]
[1760883936566,0.003,4002.4,4001.2,3.13285022]
[1760883936810,0.003,4002.4,4001.2,8.68984272]
[1760883937110,0.003,4002.4,4001.2,8.86045022]
[1760883937310,0.003,4002.4,4001.2,4.42285022]
[1760883937516,0.2245,4001.9,4001.2,2.49925022]
[1760883937666,0.2245,4001.9,4001.2,5.17625022]
[1760883938090,0.2245,4001.9,4001.2,2.677]
[1760883938300,0.2245,4001.9,4001.2,2.49925022]
[1760883938486,0.2245,4001.9,4001.2,5.17625022]
[1760883939504,0.4652,4001.7,4001.2,2.674]
[1760883939805,0.4662,4001.3,4001.2,2.674]
[1760883940300,0.001,4001.3,4001.2,2.674]
[1760883940516,0.001,4001.3,4000.1,0.14854638]
[1760883940517,0.001,4001.3,4000.1,1.8528]
[1760883940745,1.09349542,4001.2,3995.6,1.22743572]
[1760883940946,1.09349542,4001.2,3994.9,0.002]
[1760883940947,0.2245,3996.3,3994.9,4.43409386]
[1760883941087,6.44863084,3996.2,3994.9,0.002]
[1760883941284,2.115487,3996.0,3995.0,0.252]
[1760883941482,4.61813637,3995.8,3995.0,0.252]
[1760883941694,2.115487,3995.6,3995.0,0.252]
[1760883941884,2.115487,3995.4,3995.0,0.252]
[1760883942110,2.115487,3995.2,3995.0,0.252]
[1760883942309,2.115487,3995.3,3995.0,0.252]
[1760883942608,2.115487,3995.3,3995.1,2.712]
[1760883944237,2.115487,3995.3,3995.2,0.1248]
[1760883945235,2.115487,3995.7,3995.2,0.1248]
[1760883945391,2.115487,3995.7,3995.1,2.712]
[1760883945590,2.115487,3995.7,3995.6,0.1248]
[1760883945787,0.4652,3995.7,3995.6,2.8328]
[1760883946112,2.580687,3995.7,3995.6,2.8328]
[1760883946699,3.11341822,3995.7,3995.6,2.8328]
[1760883947082,2.64821822,3995.7,3995.6,2.708]
[1760883947285,2.64821822,3995.7,3995.6,2.8328]
[1760883948136,2.115487,3995.7,3995.6,2.8328]
[1760883948308,2.115487,3995.8,3995.6,2.8328]
[1760883948511,2.115487,3996.2,3995.6,2.8328]
[1760883948835,2.115487,3996.0,3995.6,5.33555161]
[1760883949009,2.115487,3996.2,3996.1,0.1248]
[1760883949214,2.115487,3996.1,3995.7,2.703]
[1760883949410,2.115487,3996.0,3995.7,2.703]
[1760883949614,2.115487,3996.0,3995.8,2.50262775]
[1760883949811,2.115487,3996.0,3995.9,0.1248]
[1760883950015,2.115487,3996.0,3995.9,2.62736512]
[1760883950648,2.115487,3996.0,3995.9,0.1248]
[1760883950858,2.580687,3996.0,3995.9,0.1248]
[1760883951005,2.115487,3996.0,3995.9,0.1248]
[1760883951348,2.580687,3996.0,3995.9,0.1248]
[1760883951681,2.580687,3996.0,3995.9,2.8008]
[1760883952432,2.115487,3996.0,3995.9,2.8228]
[1760883953404,2.115487,3996.0,3995.9,0.1248]
[1760883953624,2.115487,3996.0,3995.9,2.8228]
[1760883954025,2.115487,3996.0,3995.9,5.32536512]
[1760883954331,2.115487,3996.0,3995.9,2.8228]
[1760883954930,2.115487,3996.0,3995.9,0.1248]
[1760883955134,2.115487,3995.9,3995.5,2.50276182]
[1760883955455,2.115487,3995.8,3995.6,0.274]
[1760883956207,2.115487,3995.8,3995.6,2.77674399]
[1760883956404,2.115487,3995.8,3995.6,0.274]
[1760883956804,2.115487,3995.8,3995.7,2.50269039]
[1760883957014,2.115487,3995.8,3995.6,0.274]
[1760883957300,2.115487,3995.8,3995.7,6.544]
[1760883957548,2.115487,3995.8,3995.7,6.51429974]
[1760883957755,2.115487,3995.8,3995.7,9.01699013]
[1760883958105,2.115487,3995.8,3995.7,6.51429974]
[1760883958303,2.115487,3995.8,3995.7,3.82029974]
[1760883958514,2.115487,3995.8,3995.7,6.51229974]
[1760883959331,2.115487,3995.8,3995.7,2.692]
[1760883959535,2.115487,3996.5,3995.7,2.692]
[1760883959736,2.115487,3996.5,3995.8,2.50262685]
[1760883959937,2.115487,3996.5,3995.7,2.692]
[1760883960335,4.61768003,3996.5,3995.4,3.82029974]
[1760883960635,2.115487,3995.7,3995.5,5.19281421]
[1760883960837,2.115487,3995.7,3995.4,3.82029974]
[1760883961139,2.115487,3995.6,3995.4,3.82029974]
[1760883961438,2.115487,3995.6,3995.5,2.689]
[1760883961636,2.115487,3995.6,3995.4,3.82029974]
[1760883961837,2.115487,3995.7,3995.5,2.689]
[1760883962216,0.4652,3995.6,3995.5,2.689]
[1760883962542,2.580687,3995.6,3995.5,2.689]
[1760883962741,0.071,4010.0,3995.5,2.689]
[1760883962742,2.115487,3996.5,3995.5,2.689]
[1760883963047,2.115487,3996.5,3995.7,2.50269039]
[1760883963209,2.115487,3996.5,3996.3,2.50230447]
[1760883963415,2.115487,3996.5,3996.4,2.69]
[1760883963615,2.115487,3996.5,3996.4,5.19225202]
[1760883964634,2.115487,3996.9,3996.4,2.69]
[1760883964850,2.115487,3997.4,3997.1,2.5018]
[1760883965033,2.115487,3997.4,3996.4,2.7608]
[1760883965034,2.115487,3997.4,3997.2,2.689]
[1760883965262,2.553087,3997.4,3997.3,0.1248]
[1760883965449,2.115487,3997.4,3997.3,2.8128]
[1760883965781,2.50193421,3997.0,3996.8,2.688]
[1760883966075,2.768287,3996.9,3996.8,2.8128]
[1760883966277,2.330687,3996.9,3996.8,2.8128]
[1760883966480,2.768287,3996.9,3995.6,0.002]
[1760883966684,4.83337739,3995.7,3995.1,0.002]
[1760883966893,2.5030036,3995.2,3995.1,0.002]
[1760883967061,4.61861591,3995.0,3994.5,0.022]
[1760883967383,5.16894027,3995.0,3994.5,0.022]
[1760883967546,6.87910293,3995.0,3994.5,0.022]
[1760883967742,7.31670293,3995.0,3994.5,0.022]
[1760883968144,5.58870293,3995.0,3994.5,0.022]
[1760883969484,5.58870293,3995.0,3994.5,0.002]
[1760883969485,7.95030293,3995.0,3994.5,0.002]
[1760883969778,4.86479156,3994.9,3994.5,0.002]
[1760883969970,7.74580292,3994.9,3994.5,0.002]
[1760883970154,5.66237402,3994.9,3994.5,0.002]
[1760883970515,2.115487,3994.7,3994.5,0.002]
[1760883970647,5.16919092,3994.6,3994.5,0.002]
[1760883970982,5.58815358,3994.6,3994.5,0.002]
[1760883972081,18.09200758,3994.6,3994.5,0.002]
[1760883972266,15.76014458,3994.6,3994.5,0.002]
[1760883972779,7.31615358,3994.6,3994.5,0.002]
[1760883972954,2.64797402,3994.6,3994.5,0.002]
[1760883973476,3.08477402,3994.6,3994.5,0.002]
[1760883973677,2.64797402,3994.6,3994.5,0.002]
[1760883974969,2.64797402,3994.6,3994.5,2.692]
[1760883975500,0.4368,3996.5,3994.5,3.0184]
[1760883975660,2.65270531,3996.4,3995.2,2.50299453]
[1760883975866,2.115487,3996.2,3995.3,0.1248]
[1760883976188,2.115487,3996.0,3995.9,2.50256512]
[1760883976387,2.115487,3996.7,3995.4,3.0184]
[1760883976591,2.115487,3996.5,3996.0,2.5024662]
[1760883976791,2.115487,3996.7,3996.2,2.50232074]
[1760883976989,2.115487,3996.7,3995.5,2.50281566]
[1760883976990,2.115487,3997.1,3996.6,0.1248]
[1760883977310,2.115487,3996.9,3996.6,0.1248]
[1760883977472,2.115487,3997.2,3996.6,0.1248]
[1760883977673,2.115487,3997.0,3996.6,0.1248]
[1760883977873,2.115487,3996.8,3996.6,0.1248]
[1760883978077,2.50181467,3997.1,3996.6,0.1248]
[1760883978282,2.115487,3996.8,3996.6,0.1248]
[1760883978475,2.115487,3997.4,3996.5,2.691]
[1760883978684,0.2245,3997.5,3996.5,2.691]
[1760883978685,2.115487,3997.2,3996.9,0.1248]
[1760883978888,2.115487,3997.4,3996.9,0.1248]
[1760883979087,0.6336,3996.8,3993.5,0.3264]
[1760883979273,6.34566758,3996.6,3994.5,0.3284]
[1760883979608,2.115487,3996.4,3994.6,0.074]
[1760883979802,2.115487,3996.2,3994.7,0.3264]
[1760883980003,2.115487,3996.2,3995.5,2.50281148]
[1760883980307,2.115487,3996.4,3995.6,5.19673527]
[1760883980499,2.115487,3996.2,3995.6,5.19673527]
[1760883980702,2.115487,3996.4,3995.6,5.19673527]
[1760883980906,2.115487,3996.2,3995.6,5.19673527]
[1760883981104,2.115487,3996.2,3995.6,2.694]
[1760883981304,2.115487,3996.8,3995.4,0.1248]
[1760883981504,2.115487,3996.3,3995.5,2.50281249]
[1760883981708,2.115487,3996.1,3995.6,2.547]
[1760883981917,0.2236,3996.9,3995.7,2.692]
[1760883981918,2.115487,3995.9,3995.7,2.692]
[1760883982082,0.2236,3995.9,3995.8,2.692]
[1760883982414,2.115487,3995.8,3995.1,2.62986128]
[1760883982582,2.115487,3995.6,3995.1,0.1268]
[1760883982891,2.115487,3995.8,3995.3,2.50294095]
[1760883983087,2.115487,3996.2,3995.4,2.50287757]
[1760883983289,0.53709887,3996.1,3995.4,2.50287757]
[1760883983510,2.115487,3996.0,3995.4,2.50287757]
[1760883983820,2.115487,3996.4,3995.2,2.691]
[1760883983990,2.115487,3996.2,3995.4,5.00575662]
[1760883984180,0.001,3997.1,3996.1,1.728]
[1760883984379,0.001,3997.1,3997.0,4.2298764]
[1760883984580,2.116487,3997.1,3997.0,4.42]
[1760883985016,0.001,3997.1,3997.0,7.2482764]
[1760883985314,0.001,3997.1,3997.0,4.5562764]
[1760883985539,0.001,3997.1,3997.0,6.9208764]
[1760883985884,0.001,3997.1,3997.0,4.2298764]
[1760883986089,2.116487,3997.1,3997.0,4.2298764]
[1760883986719,2.116487,3997.1,3997.0,6.9208764]
[1760883987988,2.116487,3997.1,3997.0,6.9198764]
[1760883989218,2.116487,3997.1,3997.0,7.0446764]
[1760883989446,2.116487,3997.1,3997.0,2.686]
[1760883989747,2.116487,3997.1,3997.0,5.1878764]
[1760883990050,2.116487,3997.1,3997.0,10.73617614]
[1760883990571,0.001,3997.1,3997.0,10.73617614]
[1760883990848,0.4378,3997.1,3995.3,6.32320333]
[1760883991057,0.4378,3997.1,3995.2,0.3264]
[1760883991058,2.115487,3996.9,3995.2,0.3264]
[1760883991214,4.61756557,3996.7,3995.3,2.50288601]
[1760883991419,2.115487,3996.3,3995.4,2.692]
[1760883991619,2.115487,3996.1,3995.5,2.50276119]
[1760883991854,2.115487,3995.9,3995.6,1.728]
[1760883992016,2.115487,3996.3,3995.5,2.50276119]
[1760883992218,2.115487,3996.1,3995.6,2.692]
[1760883992514,2.50207332,3996.7,3995.1,0.1268]
[1760883992515,2.115487,3995.6,3995.1,0.002]
[1760883992714,2.115487,3995.6,3995.2,2.691]
[1760883993169,2.115487,3995.6,3995.2,5.19400193]
[1760883993681,2.115487,3995.6,3995.3,2.69]
[1760883994176,2.115487,3995.4,3995.1,0.002]
[1760883994410,2.50212704,3996.6,3995.1,0.002]
[1760883994411,2.115487,3995.3,3995.2,5.1920036]
[1760883994683,2.115487,3995.8,3995.1,0.1268]
[1760883994884,2.115487,3995.6,3995.1,0.002]
[1760883995092,0.6785,3995.9,3995.2,2.689]
[1760883995093,2.115487,3995.8,3995.2,2.689]
[1760883995276,2.115487,3995.6,3995.2,5.19199841]
[1760883995448,2.115487,3995.7,3995.2,5.19199841]
[1760883995657,2.115487,3995.7,3995.3,2.50293541]
[1760883995948,2.115487,3995.5,3995.1,0.002]
[1760883996143,2.115487,3995.3,3995.2,2.688]
[1760883996354,2.115487,3995.5,3995.2,2.688]
[1760883996581,2.115487,3995.4,3995.2,2.688]
[1760883996881,2.115487,3995.2,3995.1,0.002]
[1760883997073,2.13332434,3995.2,3995.1,2.689]
[1760883997262,2.115487,3995.2,3995.1,2.689]
[1760883997576,2.570387,3995.2,3995.1,2.688]
[1760883998578,2.570387,3995.2,3995.1,0.002]
[1760883998579,5.09122794,3995.2,3995.1,0.002]
[1760883999580,5.72482794,3995.2,3995.1,0.002]
[1760883999887,5.7069906,3995.2,3995.1,0.002]
[1760884002787,5.0733906,3995.2,3995.1,0.002]
[1760884002956,2.9076,3995.9,3995.1,0.002]
[1760884002957,2.115487,3995.5,3995.1,0.002]
[1760884003156,5.0733906,3995.2,3995.1,0.002]
[1760884003357,5.09122794,3995.2,3995.1,0.002]
[1760884004698,5.7069906,3995.2,3995.1,0.002]
[1760884004902,10.1015086,3995.2,3995.1,0.002]
[1760884005048,5.7069906,3995.2,3995.1,0.002]
[1760884005253,16.4520496,3995.2,3995.1,0.002]
[1760884005464,14.2428356,3995.2,3995.1,0.002]
[1760884005861,5.7069906,3995.2,3995.1,0.002]
[1760884006452,8.0458606,3995.2,3995.1,0.002]
[1760884006653,5.7069906,3995.2,3995.1,0.002]
[1760884007101,11.5710696,3995.2,3995.1,0.002]
[1760884007398,13.2990696,3995.2,3995.1,0.002]
[1760884007952,13.2013906,3995.2,3995.1,0.002]
[1760884008152,11.9638906,3995.2,3995.1,0.002]
[1760884008954,22.5581446,3995.2,3995.1,0.002]
[1760884009158,21.3208946,3995.2,3995.1,0.002]
[1760884009489,20.8182036,3995.2,3995.1,0.002]
[1760884009994,20.8182036,3995.2,3994.7,0.002]
[1760884009995,3.13679156,3994.9,3994.7,0.002]
[1760884010163,15.92337157,3994.8,3994.7,0.002]
[1760884010352,11.77628023,3994.8,3994.7,0.002]
[1760884010751,4.355642,3994.8,3994.7,0.002]
[1760884010954,0.25459805,3996.5,3994.7,0.002]
[1760884010955,2.336287,3995.8,3994.7,0.002]
[1760884011270,2.113487,3995.4,3994.7,0.002]
[1760884011470,2.113487,3995.2,3994.7,0.002]
[1760884011665,2.50282182,3995.5,3994.7,2.50531156]
[1760884011891,2.113487,3995.4,3994.7,2.50531156]